fUST/lending_fUST_20251230
["ID","MTS","AMOUNT","RATE_DAILY","PERIOD"]
[400072681,1767067849549,-467.62343338,0.00021917,2]
[400072682,1767067849558,-161.65920763,0.00021917,2]
[400072683,1767067849567,-313.88086763,0.00021917,2]
[400072684,1767067849576,-446.84088329,0.00021917,2]
[400072685,1767067849585,-610.85708768,0.00021917,2]
[400072686,1767067849595,-464.72692172,0.00021917,2]
[400072687,1767067849604,-500.0,0.00021917,2]
[400072688,1767067849614,-345.01026882,0.00021917,2]
[400072689,1767067849624,-500.0,0.00021917,2]
[400072690,1767067849633,-226.98660314,0.00021917,2]
[400072691,1767067849642,-443.63446877,0.00021917,2]
[400072692,1767067849653,-349.03607023,0.00021917,2]
[400072693,1767067849662,-500.79380713,0.00021917,2]
[400072694,1767067849671,-490.76843281,0.00021917,2]
[400072695,1767067849680,-175.06796343,0.00021917,2]
[400072696,1767067849692,-297.37714473,0.00021917,2]
[400072697,1767067849701,-544.01459209,0.00021917,2]
[400072698,1767067849711,-500.0,0.00021917,2]
[400072699,1767067849719,-500.31919433,0.00021917,2]
[400072700,1767067849730,-234.9790113,0.00021917,2]
[400072701,1767067849740,-500.0,0.00021917,2]
[400072702,1767067849751,-274.58472757,0.00021917,2]
[400072703,1767067849761,-249.92808363,0.00021917,2]
[400072704,1767067849771,-338.6906951,0.00021917,2]
[400072705,1767067849780,-500.06397758,0.00021917,2]
[400072706,1767067849789,-500.0,0.00021917,2]
[400072707,1767067849799,-319.72849913,0.00021917,2]
[400072708,1767067849809,-247.18789958,0.00021917,2]
[400072709,1767067849818,-226.51399345,0.00021917,2]
[400072710,1767067849828,-623.80024552,0.00021917,2]
[400072711,1767067849838,-188.22075113,0.00021917,2]
[400072712,1767067849848,-423.1302761,0.00021917,2]
[400072713,1767067849857,-500.0,0.00021917,2]
[400072714,1767067849867,-500.08288355,0.00021917,2]
[400072715,1767067849877,-373.31877062,0.00021917,2]
[400072716,1767067849887,-584.51,0.00022,7]
[400072717,1767067849896,-1560.0,0.00022055,2]
[400072718,1767067849906,-2258.0,0.00022096,2]
[400072719,1767067849915,-500.0,0.00022191,2]
[400072720,1767067849924,-888.45427144,0.00022191,2]
[400072721,1767067849934,-500.0,0.00022191,2]
[400072722,1767067849944,-500.0,0.00022191,2]
[400072723,1767067850036,-500.0,0.00022191,2]
[400072724,1767067850046,-425.3251123,0.00022191,2]
[400072725,1767067850056,-500.0,0.00022191,2]
[400072726,1767067850065,-169.60907689,0.00022191,2]
[400072727,1767067850076,-501.10644483,0.00022191,2]
[400072728,1767067850085,-500.0,0.00022191,2]
[400072729,1767067850095,-500.0,0.00022191,2]
[400072730,1767067850105,-1406.3,0.00022191,2]
[400072731,1767067850114,-500.0,0.00022191,2]
[400072732,1767067850123,-500.0,0.00022191,2]
[400072733,1767067850133,-1000.0,0.00022191,2]
[400072734,1767067850143,-500.0,0.00022191,2]
[400072735,1767067850153,-500.0,0.00022191,2]
[400072736,1767067850162,-500.0,0.00022191,2]
[400072737,1767067850171,-500.0,0.00022191,2]
[400072738,1767067850180,-500.0,0.00022191,2]
[400072739,1767067850190,-500.0,0.00022191,2]
[400072740,1767067850199,-500.0,0.00022191,2]
[400072741,1767067850209,-500.0,0.00022191,2]
[400072742,1767067850218,-223.69019589,0.00022191,2]
[400072743,1767067850227,-232.92010454,0.00022191,2]
[400072744,1767067850237,-500.0,0.00022191,2]
[400072745,1767067850247,-500.0,0.00022191,2]
[400072746,1767067850256,-500.0,0.00022191,2]
[400072747,1767067850265,-500.50013322,0.00022191,2]
[400072748,1767067850275,-229.70253267,0.00022191,2]
[400072749,1767067850284,-534.62451166,0.00022191,2]
[400072750,1767067850294,-205.0,0.00022411,7]
[400072751,1767067850303,-500.0,0.00022465,2]
[400072752,1767067850313,-888.45427144,0.00022465,2]
[400072753,1767067850322,-500.0,0.00022465,2]
[400072754,1767067850332,-500.0,0.00022465,2]
[400072755,1767067850341,-500.0,0.00022465,2]
[400072756,1767067850350,-598.56632729,0.00022465,2]
[400072757,1767067850359,-500.0,0.00022465,2]
[400072758,1767067850368,-500.0,0.00022465,2]
[400072759,1767067850377,-1406.3,0.00022465,2]
[400072760,1767067850387,-500.0,0.00022465,2]
[400072761,1767067850397,-500.0,0.00022465,2]
[400072762,1767067850406,-1000.0,0.00022465,2]
[400072763,1767067850416,-500.0,0.00022465,2]
[400072764,1767067850426,-500.0,0.00022465,2]
[400072765,1767067850437,-500.0,0.00022465,2]
[400072766,1767067850447,-500.0,0.00022465,2]
[400072767,1767067850457,-500.0,0.00022465,2]
[400072768,1767067850467,-500.0,0.00022465,2]
[400072769,1767067850476,-500.0,0.00022465,2]
[400072770,1767067850485,-500.0,0.00022465,2]
[400072771,1767067850495,-498.64088611,0.00022465,2]
[400072772,1767067850504,-500.0,0.00022465,2]
[400072773,1767067850514,-500.0,0.00022465,2]
[400072774,1767067850525,-353.7,0.00022588,2]
[400072775,1767067850534,-165.49,0.000226,7]
[400072776,1767067850544,-1660.0,0.00022603,2]
[400072777,1767067850554,-153.02,0.000227,2]
[400072778,1767067850563,-11429.67,0.000227,2]
[400072779,1767067850573,-501.47115126,0.00022739,2]
[400072780,1767067850582,-888.45427144,0.00022739,2]
[400072781,1767067850592,-500.0,0.00022739,2]
[400072782,1767067850601,-500.0,0.00022739,2]
[400072783,1767067850611,-500.0,0.00022739,2]
[400072784,1767067850620,-500.0,0.00022739,2]
[400072785,1767067850629,-500.0,0.00022739,2]
[400072786,1767067850639,-1406.3,0.00022739,2]
[400072787,1767067850648,-500.0,0.00022739,2]
[400072788,1767067850659,-505.79587884,0.00022739,2]
[400072789,1767067850668,-569.34807645,0.00022739,2]
[400072790,1767067850678,-500.0,0.00022739,2]
[400072791,1767067850690,-500.0,0.00022739,2]
[400072792,1767067850699,-504.4,0.00022739,2]
[400072793,1767067850708,-500.0,0.00022739,2]
[400072794,1767067850718,-500.0,0.00022739,2]
[400072795,1767067850727,-500.0,0.00022739,2]
[400072796,1767067850738,-500.0,0.00022739,2]
[400072797,1767067850747,-500.0,0.00022739,2]
[400072798,1767067850756,-500.0,0.00022739,2]
[400072799,1767067850767,-592.77633965,0.00022739,2]
[400072800,1767067850777,-431.020463,0.00023005,12]
[400072801,1767067850786,-888.45427144,0.00023013,2]
[400072802,1767067850795,-500.0,0.00023013,2]
[400072803,1767067850805,-500.0,0.00023013,2]
[400072804,1767067850814,-500.0,0.00023013,2]
[400072805,1767067850824,-1406.3,0.00023013,2]
[400072806,1767067850834,-500.0,0.00023013,2]
[400072807,1767067850844,-500.0,0.00023013,2]
[400072808,1767067850853,-500.0,0.00023013,2]
[400072809,1767067850862,-500.0,0.00023013,2]
[400072810,1767067850872,-500.0,0.00023013,2]
[400072811,1767067850881,-500.0,0.00023013,2]
[400072812,1767067850890,-1000.0,0.000231,10]
[400072813,1767067850900,-791.0,0.000231,10]
[400072814,1767067850909,-1760.0,0.0002315,2]
[400072815,1767067850918,-3749.05342105,0.00023262,2]
[400072816,1767067850927,-396.60598677,0.00023287,2]
[400072817,1767067850936,-500.0,0.00023287,2]
[400072818,1767067850946,-500.0,0.00023287,2]
[400072819,1767067850955,-588.47770235,0.00023287,2]
[400072820,1767067850966,-1406.3,0.00023287,2]
[400072821,1767067850975,-500.0,0.00023287,2]
[400072822,1767067850984,-500.0,0.00023287,2]
[400072823,1767067850994,-500.0,0.00023287,2]
[400072824,1767067851003,-500.0,0.00023287,2]
[400072825,1767067851012,-500.0,0.00023287,2]
[400072826,1767067851021,-223.2,0.00023287,2]
[400072827,1767067851031,-1409.93,0.000233,14]
[400072828,1767067851040,-500.0,0.00023314,2]
[400072829,1767067851051,-500.0,0.00023393,2]
[400072830,1767067851060,-13788.93686352,0.000234,3]
[400072831,1767067851069,-500.0,0.00023561,2]
[400072832,1767067851079,-500.0,0.00023561,2]
[400072833,1767067851089,-1406.3,0.00023561,2]
[400072834,1767067851098,-500.0,0.00023561,2]
[400072835,1767067851108,-500.0,0.00023561,2]
[400072836,1767067851117,-500.0,0.00023561,2]
[400072837,1767067851127,-513.16,0.00023561,2]
[400072838,1767067851137,-500.0,0.00023561,2]
[400072839,1767067851147,-2000.0,0.00023636,7]
[400072840,1767067851156,-162.87917481,0.0002366,2]
[400072841,1767067851166,-1860.0,0.00023698,2]
[400072842,1767067851176,-532.3279092,0.00023718,2]
[400072843,1767067851185,-15279.06072301,0.00023812,2]
[400072844,1767067851194,-500.0,0.00023835,2]
[400072845,1767067851203,-500.0,0.00023835,2]
[400072846,1767067851212,-200.0,0.00023835,2]
[400072847,1767067851222,-200.0,0.00023835,2]
[400072848,1767067851231,-200.0,0.00023835,2]
[400072849,1767067851240,-200.0,0.00023835,2]
[400072850,1767067851249,-200.0,0.00023835,2]
[400072851,1767067851258,-200.0,0.00023835,2]
[400072852,1767067851268,-200.0,0.00023835,2]
[400072853,1767067851277,-200.0,0.00023835,2]
[400072854,1767067851287,-1406.3,0.00023835,2]
[400072855,1767067851299,-500.0,0.00023835,2]
[400072856,1767067851308,-500.0,0.00023835,2]
[400072857,1767067851317,-500.0,0.00023835,2]
[400072858,1767067851336,-500.0,0.00023835,2]
[400072859,1767067851352,-1554.17318168,0.0002387,2]
[400072860,1767067851361,-584.51,0.000239,7]
[400072861,1767067851370,-759.57835751,0.00023901,2]
[400072862,1767067851379,-212.16404779,0.00023932,2]
[400072863,1767067851388,-289.23604112,0.00023932,2]
[400072864,1767067851399,-500.0,0.00024073,2]
[400072865,1767067851408,-289.23604112,0.00024076,9]
[400072866,1767067851418,-353.7,0.00024099,2]
[400072867,1767067851428,-500.0,0.00024109,2]
[400072868,1767067851438,-508.02519418,0.00024109,2]
[400072869,1767067851447,-200.0,0.00024109,2]
[400072870,1767067851457,-1406.3,0.00024109,2]
[400072871,1767067851467,-500.0,0.00024109,2]
[400072872,1767067851477,-500.0,0.00024109,2]
[400072873,1767067851487,-500.0,0.00024109,2]
[400072874,1767067851497,-500.0,0.00024109,2]
[400072875,1767067851506,-337644.87913312,0.00024142,2]
[400072876,1767067851516,-289.23604112,0.0002422,17]
[400072877,1767067851526,-431.020463,0.00024232,14]
[400072878,1767067851535,-195.0,0.0002424,2]
[400072879,1767067851545,-1960.0,0.00024246,2]
[400072880,1767067851555,-162.32,0.000243,7]
[400072881,1767067851565,-289.23604112,0.00024364,25]
[400072882,1767067851574,-500.0,0.00024383,2]
[400072883,1767067851583,-200.0,0.00024383,2]
[400072884,1767067851593,-1406.3,0.00024383,2]
[400072885,1767067851603,-500.0,0.00024383,2]
[400072886,1767067851613,-500.0,0.00024383,2]
[400072887,1767067851622,-500.0,0.00024383,2]
[400072888,1767067851632,-500.0,0.00024383,2]
[400072889,1767067851641,-11429.67,0.000244,2]
[400072890,1767067851651,-500.0,0.00024463,2]
[400072891,1767067851660,-500.0,0.00024478,2]
[400072892,1767067851670,-289.23604112,0.00024508,32]
[400072893,1767067851679,-1020.0,0.00024598,2]
[400072894,1767067851690,-19907.03719394,0.0002465,2]
[400072895,1767067851699,-289.23604112,0.00024652,40]
[400072896,1767067851708,-500.0,0.00024657,2]
[400072897,1767067851716,-200.0,0.00024657,2]
[400072898,1767067851726,-1406.3,0.00024657,2]
[400072899,1767067851737,-500.0,0.00024657,2]
[400072900,1767067851746,-500.0,0.00024657,2]
[400072901,1767067851756,-500.0,0.00024657,2]
[400072902,1767067851766,-531.9,0.00024657,2]
[400072903,1767067851775,-328.8606995,0.00024658,2]
[400072904,1767067851857,-1022.0,0.00024675,2]
[400072905,1767067851866,-166.39,0.000247,7]
[400072906,1767067851876,-1022.0,0.00024715,2]
[400072907,1767067851886,-920.0,0.00024794,2]
[400072908,1767067851896,-289.23604112,0.00024795,48]
[400072909,1767067851906,-65378.8857672,0.000248,2]
[400072910,1767067851915,-1020.0,0.00024864,2]
[400072911,1767067851925,-558645.613815,0.000249,2]
[400072912,1767067851934,-500.0,0.00024931,2]
[400072913,1767067851944,-200.0,0.00024931,2]
[400072914,1767067851953,-1406.3,0.00024931,2]
[400072915,1767067851963,-500.0,0.00024931,2]
[400072916,1767067851973,-500.0,0.00024931,2]
[400072917,1767067851983,-188.62587961,0.00024931,2]
[400072918,1767067851992,-212.16404779,0.00024939,56]
[400072919,1767067852001,-289.23604112,0.00024939,56]
[400072920,1767067852011,-1020.0,0.00024997,2]
[400072921,1767067852020,-10390.32906121,0.00025,2]
[400072922,1767067852030,-224922.2462527,0.00025,15]
[400072923,1767067852039,-1084.27758702,0.00025,2]
[400072924,1767067852049,-11293.20269687,0.00025,2]
[400072925,1767067852059,-2671.67802026,0.00025,2]
[400072926,1767067852069,-10364.0,0.00025,2]
[400072927,1767067852079,-500.0,0.00025,2]
[400072928,1767067852088,-1123.0,0.00025,5]
[400072929,1767067852098,-1409.93,0.00025,14]
[400072930,1767067852107,-500.0,0.00025023,7]
[400072931,1767067852117,-500.0,0.00025063,7]
[400072932,1767067852126,-289.23604112,0.00025083,63]
[400072933,1767067852135,-1020.0,0.00025149,2]
[400072934,1767067852144,-1022.0,0.0002518,2]
[400072935,1767067852154,-1020.0,0.00025189,2]
[400072936,1767067852163,-289.23604106,0.00025191,110]
[400072937,1767067852172,-579.46320172,0.000252,5]
[400072938,1767067852182,-500.0,0.00025205,2]
[400072939,1767067852191,-200.0,0.00025205,2]
[400072940,1767067852200,-1406.3,0.00025205,2]
[400072941,1767067852210,-500.0,0.00025205,2]
[400072942,1767067852219,-500.0,0.00025205,2]
[400072943,1767067852229,-289.23604112,0.00025227,71]
[400072944,1767067852239,-289.23604112,0.00025371,79]
[400072945,1767067852248,-1022.0,0.00025376,7]
[400072946,1767067852258,-1020.0,0.00025384,2]
[400072947,1767067852267,-584.51,0.000254,7]
[400072948,1767067852277,-1000.0,0.0002541,10]
[400072949,1767067852287,-1000.0,0.0002541,10]
[400072950,1767067852297,-2000.0,0.00025455,7]
[400072951,1767067852306,-431.020463,0.0002546,15]
[400072952,1767067852318,-900.0,0.00025469,3]
[400072953,1767067852329,-500.0,0.00025479,2]
[400072954,1767067852339,-200.0,0.00025479,2]
[400072955,1767067852348,-1406.3,0.00025479,2]
[400072956,1767067852357,-500.0,0.00025479,2]
[400072957,1767067852367,-500.0,0.00025479,2]
[400072958,1767067852376,-1000.0,0.000255,2]
[400072959,1767067852385,-1020.0,0.00025506,2]
[400072960,1767067852395,-289.23604112,0.00025515,86]
[400072961,1767067852404,-353.7,0.00025609,2]
[400072962,1767067852414,-500.0,0.00025622,7]
[400072963,1767067852423,-1024.0,0.00025634,2]
[400072964,1767067852433,-1020.0,0.00025635,2]
[400072965,1767067852442,-289.23604112,0.00025659,94]
[400072966,1767067852451,-1020.0,0.00025697,2]
[400072967,1767067852461,-165.49,0.000257,7]
[400072968,1767067852470,-578.3947475,0.00025718,2]
[400072969,1767067852480,-500.0,0.0002575,7]
[400072970,1767067852489,-500.0,0.00025753,2]
[400072971,1767067852499,-311.3580163,0.00025753,2]
[400072972,1767067852509,-1406.3,0.00025753,2]
[400072973,1767067852519,-500.0,0.00025753,2]
[400072974,1767067852528,-576.92380782,0.00025753,2]
[400072975,1767067852537,-15279.06072301,0.00025768,2]
[400072976,1767067852548,-11429.67,0.000258,2]
[400072977,1767067852559,-289.23604112,0.00025803,102]
[400072978,1767067852569,-1020.0,0.00025875,2]
[400072979,1767067852580,-500.0,0.00025931,7]
[400072980,1767067852589,-212.16404779,0.00025947,110]
[400072981,1767067852598,-1020.0,0.00025974,2]
[400072982,1767067852608,-39742.13262439,0.00026,10]
[400072983,1767067852619,-529.2410511,0.00026,2]
[400072984,1767067852628,-19900.0,0.00026,2]
[400072985,1767067852637,-161.0,0.00026,5]
[400072986,1767067852647,-537.36,0.00026027,2]
[400072987,1767067852656,-1406.3,0.00026027,2]
[400072988,1767067852666,-500.0,0.00026027,2]
[400072989,1767067852675,-1020.0,0.00026064,7]
[400072990,1767067852684,-1020.0,0.00026127,7]
[400072991,1767067852698,-194.445198,0.0002616,2]
[400072992,1767067852708,-1406.3,0.00026301,2]
[400072993,1767067852718,-285.40536442,0.00026301,2]
[400072994,1767067852727,-500.0,0.00026317,7]
[400072995,1767067852738,-1022.0,0.00026338,2]
[400072996,1767067852747,-500.0,0.0002636,7]
[400072997,1767067852757,-1020.0,0.00026417,2]
[400072998,1767067852766,-1020.0,0.00026542,2]
[400072999,1767067852775,-500.0,0.0002657,7]
[400073000,1767067852785,-1406.3,0.00026575,2]
[400073001,1767067852794,-1020.0,0.00026672,2]
[400073002,1767067852803,-584.588496,0.00026676,2]
[400073003,1767067852812,-1020.0,0.00026683,2]
[400073004,1767067852822,-431.020463,0.00026687,17]
[400073005,1767067852831,-3749.05342105,0.00026823,2]
[400073006,1767067852839,-1406.3,0.00026849,2]
[400073007,1767067852849,-500.0,0.00026856,7]
[400073008,1767067852858,-1409.93,0.000269,14]
[400073009,1767067852867,-1020.0,0.00026912,2]
[400073010,1767067852876,-1020.0,0.0002698,2]
[400073011,1767067852887,-188.0,0.00027,7]
[400073012,1767067852895,-500.0,0.00027018,7]
[400073013,1767067852905,-353.7,0.00027119,2]
[400073014,1767067852914,-500.0,0.0002712,7]
[400073015,1767067852924,-1406.3,0.00027123,2]
[400073016,1767067852933,-2000.0,0.00027273,7]
[400073017,1767067852943,-11429.67,0.000273,2]
[400073018,1767067852952,-568.73029361,0.0002739,7]
[400073019,1767067852961,-1406.3,0.00027397,2]
[400073020,1767067852971,-151.0,0.00027397,7]
[400073021,1767067852980,-151.0,0.00027397,7]
[400073022,1767067852989,-151.0,0.00027397,7]
[400073023,1767067852998,-151.0,0.00027397,7]
[400073024,1767067853007,-151.0,0.00027397,7]
[400073025,1767067853016,-151.0,0.00027397,7]
[400073026,1767067853025,-151.0,0.00027397,7]
[400073027,1767067853035,-151.0,0.00027397,7]
[400073028,1767067853045,-151.0,0.00027397,7]
[400073029,1767067853054,-151.377295,0.00027397,7]
[400073030,1767067853064,-300.0,0.00027397,2]
[400073031,1767067853073,-300.0,0.00027397,2]
[400073032,1767067853083,-300.0,0.00027397,2]
[400073033,1767067853092,-300.0,0.00027397,2]
[400073034,1767067853101,-300.0,0.00027397,2]
[400073035,1767067853111,-300.0,0.00027397,2]
[400073036,1767067853121,-300.0,0.00027397,2]
[400073037,1767067853131,-300.0,0.00027397,2]
[400073038,1767067853140,-500.0,0.00027397,5]
[400073039,1767067853150,-45904.70290236,0.000275,2]
[400073040,1767067853159,-584.51,0.000275,7]
[400073041,1767067853169,-339.16464065,0.0002767,2]
[400073042,1767067853178,-1355.30190404,0.0002767,2]
[400073043,1767067853188,-267.26422414,0.0002767,2]
[400073044,1767067853198,-1067.98783967,0.0002767,2]
[400073045,1767067853207,-1406.3,0.00027671,2]
[400073046,1767067853217,-188.0,0.00027671,14]
[400073047,1767067853227,-500.0,0.00027677,7]
[400073048,1767067853236,-500.0,0.00027704,7]
[400073049,1767067853246,-624.4615858,0.00027718,2]
[400073050,1767067853256,-15279.06072301,0.00027724,2]
[400073051,1767067853265,-1000.0,0.00027777,5]
[400073052,1767067853275,-431.020463,0.00027914,18]
[400073053,1767067853284,-500.0,0.00027936,7]
[400073054,1767067853294,-1406.3,0.00027945,2]
[400073055,1767067853304,-1000.0,0.00027945,5]
[400073056,1767067853313,-250.0,0.00027945,5]
[400073057,1767067853323,-1000.0,0.00027951,30]
[400073058,1767067853332,-1000.0,0.00027951,30]
[400073059,1767067853342,-579.0,0.00027951,30]
[400073060,1767067853351,-15307.62179137,0.00028,2]
[400073061,1767067853361,-595.83744368,0.00028,2]
[400073062,1767067853371,-519.64420806,0.00028,2]
[400073063,1767067853380,-1406.3,0.00028219,2]
[400073064,1767067853390,-500.0,0.00028444,7]
[400073065,1767067853400,-1341.07728692,0.00028493,5]
[400073066,1767067853410,-350.0,0.00028493,5]
[400073067,1767067853420,-229718.30083605,0.000285,7]
[400073068,1767067853434,-353.7,0.0002863,3]
[400073069,1767067853447,-500.0,0.00028636,7]
[400073070,1767067853526,-759.57835751,0.00028643,2]
[400073071,1767067853536,-1409.93,0.000287,14]
[400073072,1767067853547,-3256.62662481,0.0002876,2]
[400073073,1767067853556,-19127.78853029,0.0002876,2]
[400073074,1767067853566,-5000.0,0.00028766,15]
[400073075,1767067853576,-188.0,0.00028767,14]
[400073076,1767067853586,-333614.75325092,0.000288,3]
[400073077,1767067853596,-172.33062748,0.000288,7]
[400073078,1767067853605,-11429.67,0.000288,2]
[400073079,1767067853615,-162.03,0.000288,2]
[400073080,1767067853625,-300.0,0.00028932,2]
[400073081,1767067853635,-300.0,0.00028932,2]
[400073082,1767067853644,-300.0,0.00028932,2]
[400073083,1767067853654,-300.0,0.00028932,2]
[400073084,1767067853664,-300.0,0.00028932,2]
[400073085,1767067853673,-300.0,0.00028932,2]
[400073086,1767067853683,-300.0,0.00028986,2]
[400073087,1767067853700,-300.0,0.00028986,2]
[400073088,1767067853709,-300.0,0.00028986,2]
[400073089,1767067853718,-300.0,0.00028986,2]
[400073090,1767067853728,-300.0,0.00028986,2]
[400073091,1767067853737,-300.0,0.00028986,2]
[400073092,1767067853747,-889.49824385,0.00029,2]
[400073093,1767067853757,-28341.24003385,0.00029,20]
[400073094,1767067853767,-2406.38515982,0.00029,10]
[400073095,1767067853777,-162.32,0.00029,7]
[400073096,1767067853787,-165.49,0.00029,7]
[400073097,1767067853797,-206.01879,0.00029,120]
[400073098,1767067853808,-300.0,0.00029014,2]
[400073099,1767067853818,-300.0,0.00029014,2]
[400073100,1767067853827,-300.0,0.00029014,2]
[400073101,1767067853837,-300.0,0.00029014,2]
[400073102,1767067853846,-300.0,0.00029014,2]
[400073103,1767067853856,-300.0,0.00029014,2]
[400073104,1767067853866,-450.0,0.00029041,5]
[400073105,1767067853876,-300.0,0.00029068,2]
[400073106,1767067853886,-300.0,0.00029068,2]
[400073107,1767067853896,-300.0,0.00029068,2]
[400073108,1767067853906,-300.0,0.00029068,2]
[400073109,1767067853916,-300.0,0.00029068,2]
[400073110,1767067853926,-300.0,0.00029068,2]
[400073111,1767067853936,-2000.0,0.00029091,7]
[400073112,1767067853946,-166.39,0.000291,7]
[400073113,1767067853956,-162.03,0.000291,2]
[400073114,1767067853965,-431.020463,0.00029141,19]
[400073115,1767067853975,-500.0,0.00029316,7]
[400073116,1767067853984,-500.0,0.00029381,7]
[400073117,1767067853995,-162.03,0.000294,2]
[400073118,1767067854005,-500.0,0.00029489,7]
[400073119,1767067854015,-384.21694444,0.000295,120]
[400073120,1767067854025,-550.0,0.00029589,5]
[400073121,1767067854035,-15279.06072301,0.00029679,2]
[400073122,1767067854046,-584.51,0.000297,7]
[400073123,1767067854056,-162.03,0.000297,2]
[400073124,1767067854066,-670.52842409,0.00029718,2]
[400073125,1767067854076,-5169.0,0.00029821,10]
[400073126,1767067854086,-412.34289824,0.0003,10]
[400073127,1767067854098,-263.0797124,0.0003,2]
[400073128,1767067854108,-428.14042977,0.0003,120]
[400073129,1767067854117,-843.31673468,0.0003,30]
[400073130,1767067854127,-385.78785205,0.0003,120]
[400073131,1767067854137,-1500.0,0.0003,45]
[400073132,1767067854146,-509.61616711,0.0003,30]
[400073133,1767067854156,-265.86918879,0.0003,120]
[400073134,1767067854165,-706.67383558,0.0003,120]
[400073135,1767067854175,-162.03,0.0003,2]
[400073136,1767067854184,-284.92902915,0.000301,120]
[400073137,1767067854193,-1002.0,0.000301,30]
[400073138,1767067854203,-650.0,0.00030137,5]
[400073139,1767067854213,-353.7,0.0003014,4]
[400073140,1767067854223,-256.5,0.00030151,30]
[400073141,1767067854232,-1409.93,0.000302,14]
[400073142,1767067854241,-11429.67,0.000302,2]
[400073143,1767067854251,-191.0,0.00030205,14]
[400073144,1767067854260,-431.020463,0.00030368,21]
[400073145,1767067854270,-3749.05342105,0.00030383,2]
[400073146,1767067854279,-162.03,0.000304,2]
[400073147,1767067854289,-750.0,0.00030685,5]
[400073148,1767067854299,-162.03,0.000307,2]
[400073149,1767067854308,-1000.0,0.00030746,30]
[400073150,1767067854318,-1000.0,0.00030746,30]
[400073151,1767067854327,-1000.0,0.00030746,30]
[400073152,1767067854336,-2000.0,0.00030909,7]
[400073153,1767067854346,-1391.47,0.00030958,30]
[400073154,1767067854356,-305.77525825,0.0003099,2]
[400073155,1767067854365,-204.60171926,0.00031,120]
[400073156,1767067854375,-207.09558641,0.00031,120]
[400073157,1767067854384,-193.76876873,0.00031,120]
[400073158,1767067854392,-178.24448024,0.00031,120]
[400073159,1767067854402,-174.48954131,0.00031,120]
[400073160,1767067854412,-1388.90813834,0.00031,120]
[400073161,1767067854422,-28633.4661558,0.00031,120]
[400073162,1767067854431,-1356.72940716,0.00031,120]
[400073163,1767067854440,-308.96700693,0.00031,120]
[400073164,1767067854449,-180.65011172,0.00031,120]
[400073165,1767067854459,-201.19436054,0.00031,120]
[400073166,1767067854468,-167.28493125,0.00031,120]
[400073167,1767067854478,-405.1137156,0.00031,120]
[400073168,1767067854487,-160.96956782,0.00031,120]
[400073169,1767067854497,-173.91029313,0.00031,120]
[400073170,1767067854506,-162.03,0.00031,2]
[400073171,1767067854515,-5000.0,0.00031005,2]
[400073172,1767067854524,-13931.54620908,0.0003112,2]
[400073173,1767067854534,-153.02,0.000312,2]
[400073174,1767067854544,-915.55215583,0.00031233,5]
[400073175,1767067854553,-162.03,0.000313,2]
[400073176,1767067854563,-1391.47,0.00031506,31]
[400073177,1767067854572,-431.020463,0.00031595,22]
[400073178,1767067854582,-584.51,0.000316,7]
[400073179,1767067854591,-162.03,0.000316,2]
[400073180,1767067854601,-15279.06072301,0.00031635,2]